[Event "Polish Youth G16 Championship 2023"]
[Site "Jastrzebia Gora"]
[Date "2023.03.15"]
[Round "5.8"]
[White "Sprzeczka, Emilia"]
[Black "Romejko, Jagoda"]
[Result "1/2-1/2"]
[ECO "C50"]
[WhiteElo "1887"]
[BlackElo "1483"]
[Annotator "NA RC COMBH"]
[PlyCount "111"]
[EventDate "2023.03.11"]
[EventType "swiss"]
[EventCountry "POL"]
[SourceTitle "playchess.com"]
[Source "ChessBase"]
[SourceQuality "1"]
[TimeControl "40/5400+30:1800+30"]

1. e4 {[%emt 0:00:03]} e5 {[%emt 0:00:04]} 2. Nf3 {[%emt 0:00:04]} Nc6 {[%emt 0:00:02]} 3. Bc4 {[%emt 0:00:06]} Nf6 {[%emt 0:00:04]} 4. d3 {[%emt 0:00:07]} Bc5 {[%emt 0:00:07]} 5. O-O {[%emt 0:00:31]} O-O {[%emt 0:01:06]} 6. h3 {[%emt 0:00:59]} h6 {[%emt 0:01:10]} 7. c3 {[%emt 0:01:59]} d6 {[%emt 0:06:04]} 8. Re1 {[%emt 0:06:03]} Be6 {[%emt 0:03:04] 8...Bb6 is a critical line.} 9. Bb3 {[%emt 0:16:50]} Bxb3 {[%emt 0:05:39]} 10. axb3 Re8 {[%emt 0:03:11]} (10... a5 $11) 11. b4 {[%emt 0:12:45]} Bb6 {[%emt 0:05:34] [#]} 12. b5 $146 {[%emt 0:04:30]} ({Predecessor:} 12. Nbd2 a6 13. Nf1 d5 14. Qe2 d4 15. Ng3 Qd7 16. Nh4 dxc3 17. bxc3 Rad8 18. Rd1 {1-0 Matijevic,F (2164)-Rusjan,D (2060) Nova Gorica op-A 19th 2014 (3)}) 12... Ne7 {[%emt 0:04:02]} 13. c4 {[%emt 0:05:16]} c6 {[%emt 0:13:01]} 14. Nc3 {[%emt 0:03:00]} Ng6 {[%emt 0:03:24]} 15. bxc6 {[%emt 0:04:53]} bxc6 {[%emt 0:00:15]} 16. b4 {[%emt 0:13:18]} Rb8 {[%emt 0:12:06]} 17. b5 {[%emt 0:04:24]} (17. Qc2 $14 {feels stronger.}) 17... Ba5 {[%emt 0:05:34]} 18. Bd2 {[%emt 0:04:41]} Bxc3 {[%emt 0:07:06]} 19. Bxc3 {[%emt 0:00:06]} cxb5 {[%emt 0:00:09]} 20. cxb5 {[%emt 0:01:32]} Rxb5 {[%emt 0:01:19]} 21. Rxa7 {[%emt 0:01:07]} Qb6 {[%emt 0:00:45]} 22. Qa1 {[%emt 0:02:57]} Rf8 {[%emt 0:02:16]} 23. Qa2 {[%emt 0:01:44]} Nf4 {[%emt 0:14:39]} 24. d4 {[%emt 0:08:27]} Qc6 {[%emt 0:03:08]} 25. Ba1 {[%emt 0:00:30]} Nd3 {[%emt 0:00:30]} ({Don't play} 25... Nxe4 26. Ra6 (26. dxe5 Ng5 $17) (26. d5 Rxd5 27. Rxe4 Rd1+ {[%mdl 64] Discovered Attack} 28. Re1 Qxf3 $11) 26... Qb7 27. Ra7 $11) 26. Rd1 {[%emt 0:00:30]} Qxe4 {[%emt 0:02:04]} 27. Qc2 {[%emt 0:03:28]} Nf4 {[%emt 0:01:27]} 28. Qxe4 {[%emt 0:00:30]} Nxe4 {[%emt 0:00:04]} 29. dxe5 {[%emt 0:00:28]} dxe5 {[%emt 0:00:12]} 30. Bxe5 {[%emt 0:00:56]} Ng6 {[%emt 0:00:47]} 31. Bd4 {[%emt 0:02:16]} Rfb8 {[%emt 0:01:40]} 32. g3 {[%emt 0:00:53]} Rb1 {[%emt 0:01:29]} 33. Rxb1 {[%emt 0:00:33]} Rxb1+ {[%emt 0:00:06]} 34. Kg2 {[%emt 0:00:07]} Rd1 {[%emt 0:01:29]} 35. Be3 {[%emt 0:00:49]} Nf6 {[%emt 0:00:53]} 36. h4 {[%emt 0:00:59]} Rb1 {[%emt 0:02:17]} 37. Bd4 {[%emt 0:00:51]} Ng4 {[%emt 0:01:36]} (37... Rb5 $11 {remains equal.}) 38. h5 {[%emt 0:00:25]} Nf8 {[%emt 0:00:19]} 39. Ra8 {[%emt 0:00:27]} Rc1 {[%emt 0:00:26]} 40. Bb2 {[%emt 0:00:00]} Rc2 {[%emt 0:00:00]} 41. Ba3 {[%emt 0:04:50]} Rxf2+ {[%emt 0:04:10]} (41... Kh7 $1 $14) 42. Kh3 {[%emt 0:00:23]} Rxf3 {[%emt 0:01:45]} 43. Kxg4 {[%emt 0:00:32]} ({Much weaker is} 43. Rxf8+ $6 Kh7 $11) 43... Rxa3 {[%emt 0:00:48]} 44. Rxa3 {[%emt 0:00:07]} Ne6 {[%emt 0:00:16]} (44... Kh7 {[%emt 0:00:27]}) (44... g6 $16 {was called for.} 45. Ra8 Kg7) 45. Ra8+ {[%emt 0:02:26]} Kh7 {[%emt 0:00:24]} 46. Ra7 {[%emt 0:00:34]} Kg8 {[%emt 0:00:25]} 47. Ra8+ {[%emt 0:03:01]} Kh7 {[%emt 0:00:11]} 48. Kf5 {[%emt 0:00:54]} Nd4+ {[%emt 0:01:11]} 49. Ke5 {[%emt 0:01:47]} Nf3+ {[%emt 0:04:29]} 50. Kd6 {[%emt 0:08:42]} g6 {[%emt 0:01:10] [#]} 51. Rf8 {[%emt 0:01:00]} (51. g4 $1 $16) 51... Kg7 52. Ke7 Ne5 {[%emt 0:02:26]} 53. g4 {[%emt 0:02:05]} gxh5 {[%emt 0:01:42]} 54. gxh5 {[%emt 0:00:15]} Nc6+ {[%emt 0:00:16]} 55. Ke8 {[%emt 0:00:38]} Ne5 56. Ke7 $11 {[%emt 0:00:45]} 1/2-1/2

[Event "Polish Youth G16 Championship 2023"]
[Site "Jastrzebia Gora"]
[Date "2023.03.15"]
[Round "5.9"]
[White "Seemann, Pola"]
[Black "Pniewska, Beata"]
[Result "1-0"]
[ECO "C09"]
[WhiteElo "1714"]
[BlackElo "1448"]
[Annotator "NA RC COMBH"]
[PlyCount "71"]
[EventDate "2023.03.11"]
[EventType "swiss"]
[EventCountry "POL"]
[SourceTitle "playchess.com"]
[Source "ChessBase"]
[SourceQuality "1"]
[TimeControl "40/5400+30:1800+30"]

1. e4 {[%emt 0:00:02]} e6 {[%emt 0:00:07]} 2. d4 {[%emt 0:00:04]} c5 {[%emt 0:00:10]} 3. Nf3 {[%emt 0:00:36]} d5 {[%emt 0:01:08]} 4. Nbd2 {[%emt 0:00:15]} Nc6 {[%emt 0:02:13]} 5. exd5 {[%emt 0:00:35]} exd5 {[%emt 0:00:43]} 6. Bb5 {[%emt 0:00:39]} Bg4 {[%emt 0:01:16]} 7. O-O {[%emt 0:02:49]} Nh6 {[%emt 0:05:30]} 8. h3 {[%emt 0:11:16]} Bd7 {[%emt 0:05:20]} 9. Re1+ {[%emt 0:01:17]} Be7 {[%emt 0:01:20]} 10. Nb3 {[%emt 0:02:46]} Be6 {[%emt 0:09:56]} 11. Ne5 {[%emt 0:12:32]} Qb6 {[%emt 0:02:16]} 12. Bxc6+ {[%emt 0:02:16]} bxc6 {[%emt 0:00:11]} 13. dxc5 {[%emt 0:00:54]} Bxc5 {[%emt 0:03:08]} 14. Nxc5 {[%emt 0:01:45]} Qxc5 {[%emt 0:00:11]} 15. Bxh6 {[%emt 0:01:47]} gxh6 {[%emt 0:00:47]} 16. Nxf7 {[%emt 0:04:26]} Rf8 {[%emt 0:07:57]} 17. Qh5 {[%emt 0:10:53]} Ke7 {[%emt 0:05:50]} 18. Qxh6 {[%emt 0:01:10]} Rxf7 {[%emt 0:02:44]} 19. Qxe6+ {[%emt 0:01:37]} Kf8 {[%emt 0:00:14]} 20. Qh6+ {[%emt 0:03:44]} Kg8 {[%emt 0:01:01]} 21. Re2 {[%emt 0:01:04]} Raf8 {[%emt 0:01:58]} 22. Qh4 {[%emt 0:03:39]} Qb5 {[%emt 0:01:17]} 23. Qg3+ {[%emt 0:01:15]} Rg7 {[%emt 0:01:33]} 24. Qe5 {[%emt 0:00:11]} Rb8 {[%emt 0:01:08]} 25. b3 {[%emt 0:02:12]} Kh8 {[%emt 0:01:25]} 26. Rae1 {[%emt 0:00:34]} Rbg8 {[%emt 0:00:44]} 27. Qf6 {[%emt 0:00:29]} c5 {[%emt 0:02:16]} 28. Re7 {[%emt 0:02:39]} Qb6 {[%emt 0:01:03]} 29. Qe5 {[%emt 0:00:25]} Qb4 {[%emt 0:02:44]} 30. Rxg7 {[%emt 0:00:51]} Rxg7 {[%emt 0:00:08]} 31. c3 {[%emt 0:00:05]} Qb7 {[%emt 0:01:03]} 32. Qd6 {[%emt 0:01:09]} d4 {[%emt 0:02:55]} 33. Re8+ {[%emt 0:00:11]} Rg8 {[%emt 0:00:05]} 34. Qf6+ {[%emt 0:00:14]} Qg7 {[%emt 0:00:09]} 35. Rxg8+ {[%emt 0:00:07]} Kxg8 {[%emt 0:00:20]} 36. Qxg7+ {[%emt 0:00:14]} 1-0

[Event "Polish Youth G16 Championship 2023"]
[Site "Jastrzebia Gora"]
[Date "2023.03.15"]
[Round "5.10"]
[White "Salamon, Julia"]
[Black "Nowak, Zuzanna"]
[Result "1-0"]
[ECO "D47"]
[WhiteElo "1701"]
[BlackElo "1427"]
[Annotator "NA RC COMBH"]
[PlyCount "83"]
[EventDate "2023.03.11"]
[EventType "swiss"]
[EventCountry "POL"]
[SourceTitle "playchess.com"]
[Source "ChessBase"]
[SourceQuality "1"]
[TimeControl "40/5400+30:1800+30"]

1. d4 d5 2. c4 e6 3. Nc3 c6 4. e3 Nf6 5. Nf3 Nbd7 6. Bd3 dxc4 7. Bxc4 b5 8. Bd3 Bb7 9. O-O a6 10. Qe2 c5 11. Rd1 Qc7 12. a3 Be7 13. Bc2 O-O 14. e4 b4 15. axb4 cxb4 16. Na4 Rac8 17. Bd3 a5 18. Bg5 e5 19. d5 h6 20. Be3 Ng4 21. Rdc1 {[%emt 1:01:02]} Qd6 {[%emt 0:33:30]} 22. h3 {[%emt 0:00:00]} Nxe3 {[%emt 0:01:57]} 23. Qxe3 {[%emt 0:00:00]} Kh8 {[%emt 0:14:10]} 24. Bb5 {[%emt 0:00:00]} Nf6 {[%emt 0:03:46]} 25. Qa7 {[%emt 0:16:39]} Rb8 {[%emt 0:03:49]} 26. Bc6 {[%emt 0:00:34]} Bc8 {[%emt 0:06:35]} 27. Nd2 {[%emt 0:02:47]} Nh5 {[%emt 0:08:07]} 28. Nc4 {[%emt 0:07:06]} Qg6 {[%emt 0:00:02]} 29. Qxe7 {[%emt 0:03:13]} Bxh3 {[%emt 0:00:14]} 30. Ne3 {[%emt 0:00:06]} Bxg2 {[%emt 0:02:57]} 31. Qh4 {[%emt 0:03:29]} Bf3+ {[%emt 0:04:33]} 32. Kh2 {[%emt 0:02:17]} Nf4 {[%emt 0:03:06]} 33. Rg1 {[%emt 0:02:07]} Qh7 {[%emt 0:03:21]} 34. Nf5 {[%emt 0:03:10]} Ng6 {[%emt 0:01:33]} 35. Qg3 {[%emt 0:01:17]} Bxe4 {[%emt 0:00:36]} 36. Nd6 {[%emt 0:00:08]} Bc2 {[%emt 0:00:38]} 37. Nc5 {[%emt 0:00:48]} Nf4 {[%emt 0:05:17]} 38. Nd7 {[%emt 0:02:20]} Ne2 {[%emt 0:01:07]} 39. Qxe5 {[%emt 0:01:14]} Nxg1 {[%emt 0:00:39]} 40. Rxg1 {[%emt 0:00:00]} f6 {[%emt 0:00:00]} 41. Qe7 {[%emt 0:05:54]} Rfd8 {[%emt 0:05:50]} 42. Nf7+ {[%emt 0:00:51]} 1-0

[Event "Polish Youth G16 Championship 2023"]
[Site "Jastrzebia Gora"]
[Date "2023.03.15"]
[Round "5.11"]
[White "Dura, Anna"]
[Black "Zielinska, Aleksandra"]
[Result "0-1"]
[ECO "A25"]
[WhiteElo "1186"]
[BlackElo "1613"]
[Annotator "NA RC COMBH"]
[PlyCount "96"]
[EventDate "2023.03.11"]
[EventType "swiss"]
[EventCountry "POL"]
[SourceTitle "playchess.com"]
[Source "ChessBase"]
[SourceQuality "1"]
[TimeControl "40/5400+30:1800+30"]

1. c4 {[%emt 0:00:02]} e5 {[%emt 0:00:04]} 2. Nc3 {[%emt 0:00:07]} Nc6 {[%emt 0:00:08]} 3. g3 {[%emt 0:00:11]} f5 {[%emt 0:00:14]} 4. d3 {[%emt 0:01:43]} d6 {[%emt 0:03:51]} 5. Bg2 {[%emt 0:02:36]} g6 {[%emt 0:04:52]} 6. e3 {[%emt 0:04:53]} Bg7 {[%emt 0:01:25]} 7. Nge2 {[%emt 0:02:55]} Nf6 {[%emt 0:03:07]} 8. Rb1 {[%emt 0:02:39]} a5 {[%emt 0:01:57]} 9. a3 {[%emt 0:01:48]} O-O {[%emt 0:00:59]} 10. b4 {[%emt 0:02:40]} axb4 {[%emt 0:01:00]} 11. axb4 {[%emt 0:00:08]} Ne7 {[%emt 0:03:56]} 12. O-O {[%emt 0:04:49]} c6 {[%emt 0:08:38]} 13. Qb3 {[%emt 0:07:35]} Be6 {[%emt 0:05:14]} 14. b5 {[%emt 0:06:00]} d5 {[%emt 0:06:33]} 15. Rd1 {[%emt 0:06:27]} Qc7 {[%emt 0:07:16]} 16. c5 {[%emt 0:04:56]} g5 {[%emt 0:17:31]} 17. d4 {[%emt 0:04:39]} Ng6 {[%emt 0:08:16]} 18. dxe5 {[%emt 0:09:45]} Nxe5 {[%emt 0:05:14]} 19. Nd4 {[%emt 0:01:57]} Qf7 {[%emt 0:07:41]} 20. Nxe6 {[%emt 0:06:11]} Qxe6 {[%emt 0:00:10]} 21. e4 {[%emt 0:04:35]} Nxe4 {[%emt 0:04:29]} 22. Nxe4 {[%emt 0:01:02]} fxe4 {[%emt 0:00:23]} 23. Bxg5 {[%emt 0:03:45]} Nf3+ {[%emt 0:03:53]} 24. Bxf3 {[%emt 0:00:58]} exf3 {[%emt 0:00:07]} 25. Bf4 {[%emt 0:02:14]} Qg4 {[%emt 0:03:25]} 26. h3 {[%emt 0:04:22]} Qxh3 {[%emt 0:00:36]} 27. Qxf3 {[%emt 0:00:13]} Be5 {[%emt 0:01:26]} 28. Rb4 {[%emt 0:01:00]} Rf7 {[%emt 0:01:08]} 29. Qe3 {[%emt 0:00:53]} Bxf4 {[%emt 0:00:28]} 30. Rxf4 {[%emt 0:00:12]} Rxf4 {[%emt 0:00:40]} 31. Qxf4 {[%emt 0:00:05]} Qd7 {[%emt 0:00:43]} 32. Qg5+ {[%emt 0:01:49]} Qg7 {[%emt 0:00:32]} 33. Qxg7+ {[%emt 0:01:25]} Kxg7 {[%emt 0:00:05]} 34. bxc6 {[%emt 0:00:47]} bxc6 {[%emt 0:00:03]} 35. Kg2 {[%emt 0:01:19]} Ra5 {[%emt 0:00:31]} 36. Rc1 {[%emt 0:00:10]} Kf6 {[%emt 0:00:18]} 37. Kf3 {[%emt 0:00:19]} Kf5 {[%emt 0:01:03]} 38. Ke3 {[%emt 0:02:40]} Ra3+ {[%emt 0:00:47]} 39. Kd4 {[%emt 0:01:06]} Ra4+ {[%emt 0:00:35]} 40. Kd3 {[%emt 0:00:00]} Ra2 {[%emt 0:00:00]} 41. Ke3 {[%emt 0:05:52]} Ke5 {[%emt 0:08:19]} 42. Rh1 {[%emt 0:07:17]} d4+ {[%emt 0:03:03]} 43. Kf3 {[%emt 0:02:55]} Kd5 {[%emt 0:06:56]} 44. Rc1 {[%emt 0:02:49]} Ra3+ {[%emt 0:03:25]} 45. Kf4 {[%emt 0:03:16]} Ra5 {[%emt 0:07:27]} 46. Rh1 {[%emt 0:00:43]} Ra7 {[%emt 0:01:13]} 47. Rh5+ {[%emt 0:07:02]} Kc4 {[%emt 0:00:12]} 48. Kf3 {[%emt 0:01:06]} Re7 {[%emt 0:01:03]} 0-1

[Event "Polish Youth G16 Championship 2023"]
[Site "Jastrzebia Gora"]
[Date "2023.03.15"]
[Round "5.12"]
[White "Oborska, Magda"]
[Black "Michalska, Anna-Maria"]
[Result "1-0"]
[ECO "B13"]
[WhiteElo "1613"]
[BlackElo "1417"]
[Annotator "NA RC COMBH"]
[PlyCount "69"]
[EventDate "2023.03.11"]
[EventType "swiss"]
[EventCountry "POL"]
[SourceTitle "playchess.com"]
[Source "ChessBase"]
[SourceQuality "1"]
[TimeControl "40/5400+30:1800+30"]

1. e4 {[%emt 0:00:03]} c6 {[%emt 0:00:04]} 2. d4 {[%emt 0:00:03]} d5 {[%emt 0:00:04]} 3. exd5 {[%emt 0:00:26]} cxd5 {[%emt 0:00:06]} 4. c3 {[%emt 0:00:05]} Nc6 {[%emt 0:00:38]} 5. Bd3 {[%emt 0:00:07]} Nf6 {[%emt 0:00:14]} 6. h3 {[%emt 0:00:11]} e6 {[%emt 0:00:36]} 7. Bf4 {[%emt 0:00:11]} Be7 {[%emt 0:05:49]} 8. Nf3 {[%emt 0:00:09]} a6 {[%emt 0:00:37]} 9. a4 {[%emt 0:02:05]} Bd6 {[%emt 0:05:34]} 10. Bxd6 {[%emt 0:00:34]} Qxd6 {[%emt 0:00:05]} 11. O-O {[%emt 0:00:16]} O-O {[%emt 0:00:05]} 12. Re1 {[%emt 0:00:12]} b6 {[%emt 0:00:42]} 13. Nbd2 {[%emt 0:01:23]} Bb7 {[%emt 0:00:39]} 14. Ne5 {[%emt 0:02:36]} Nd7 {[%emt 0:02:11]} 15. Ndf3 {[%emt 0:15:30]} f6 {[%emt 0:05:47]} 16. Nxc6 {[%emt 0:00:47]} Bxc6 {[%emt 0:01:13]} 17. Qe2 {[%emt 0:00:19]} Rfe8 {[%emt 0:02:00]} 18. Bxa6 {[%emt 0:03:06]} e5 {[%emt 0:00:53]} 19. dxe5 {[%emt 0:01:07]} fxe5 {[%emt 0:00:14]} 20. Bb5 {[%emt 0:01:57]} Bxb5 {[%emt 0:11:31]} 21. Qxb5 {[%emt 0:00:19]} Ra5 {[%emt 0:02:14]} 22. Qe2 {[%emt 0:04:21]} Raa8 {[%emt 0:01:20]} 23. Qb5 {[%emt 0:17:01]} Ra5 {[%emt 0:01:13]} 24. Qb3 {[%emt 0:00:25]} Nc5 {[%emt 0:04:36]} 25. Qc2 {[%emt 0:01:44]} Raa8 {[%emt 0:01:53]} 26. b4 {[%emt 0:16:08]} Ne4 {[%emt 0:01:34]} 27. Qb3 {[%emt 0:00:46]} Qc6 {[%emt 0:01:44]} 28. Rxe4 {[%emt 0:00:58]} Kh8 {[%emt 0:12:28]} 29. Rxe5 {[%emt 0:00:14]} Red8 {[%emt 0:01:16]} 30. Rd1 {[%emt 0:00:27]} Rxa4 {[%emt 0:01:18]} 31. Rexd5 {[%emt 0:00:25]} Re8 {[%emt 0:02:44]} 32. Rd8 {[%emt 0:00:27]} Ra8 {[%emt 0:00:12]} 33. Rxa8 {[%emt 0:00:25]} Qxa8 {[%emt 0:00:41]} 34. Qd5 {[%emt 0:01:07]} Qb8 {[%emt 0:01:29]} 35. Ng5 {[%emt 0:00:40]} 1-0

[Event "Polish Youth G16 Championship 2023"]
[Site "Jastrzebia Gora"]
[Date "2023.03.15"]
[Round "5.14"]
[White "Bauer, Maja"]
[Black "Nieckarz, Maja"]
[Result "0-1"]
[ECO "B75"]
[WhiteElo "1383"]
[BlackElo "1493"]
[Annotator "NA RC COMBH"]
[PlyCount "86"]
[EventDate "2023.03.11"]
[EventType "swiss"]
[EventCountry "POL"]
[SourceTitle "playchess.com"]
[Source "ChessBase"]
[SourceQuality "1"]
[TimeControl "40/5400+30:1800+30"]

1. e4 {[%emt 0:00:03]} c5 {[%emt 0:00:05]} 2. Nf3 {[%emt 0:00:06]} d6 {[%emt 0:00:07]} 3. d4 {[%emt 0:00:06]} cxd4 {[%emt 0:00:05]} 4. Nxd4 {[%emt 0:00:07]} Nf6 {[%emt 0:00:07]} 5. Nc3 {[%emt 0:00:15]} g6 {[%emt 0:00:10]} 6. f3 {[%emt 0:00:58]} Bg7 {[%emt 0:00:09]} 7. Be3 {[%emt 0:00:10]} Nc6 {[%emt 0:00:05]} 8. Qd2 {[%emt 0:00:46]} O-O {[%emt 0:00:08]} 9. g4 {[%emt 0:01:07]} Be6 {[%emt 0:02:48]} 10. h4 {[%emt 0:14:17]} h5 {[%emt 0:03:27]} 11. gxh5 {[%emt 0:01:26]} Nxh5 {[%emt 0:00:08]} 12. Rg1 {[%emt 0:12:21]} Qc8 {[%emt 0:01:35]} 13. Nxe6 {[%emt 0:19:37]} Qxe6 {[%emt 0:00:07]} 14. Bh6 {[%emt 0:01:48]} Nd4 {[%emt 0:02:20]} 15. Kf2 {[%emt 0:09:34]} Qf6 {[%emt 0:07:45]} 16. Bxg7 {[%emt 0:09:56]} Kxg7 {[%emt 0:01:10]} 17. Be2 {[%emt 0:10:21]} Qxh4+ {[%emt 0:02:31]} 18. Ke3 {[%emt 0:09:09]} Qf4+ {[%emt 0:06:00]} 19. Kd3 {[%emt 0:00:16]} Nxf3 {[%emt 0:02:05]} 20. Bxf3 {[%emt 0:01:29]} Qxf3+ {[%emt 0:00:09]} 21. Qe3 {[%emt 0:00:29]} Qxe3+ {[%emt 0:00:30]} 22. Kxe3 {[%emt 0:00:07]} Nf6 {[%emt 0:00:16]} 23. Raf1 {[%emt 0:01:04]} Rh8 {[%emt 0:00:50]} 24. Rf2 {[%emt 0:01:33]} Rac8 {[%emt 0:01:57]} 25. Nb5 {[%emt 0:00:39]} Rc5 {[%emt 0:01:13]} 26. Nd4 {[%emt 0:00:34]} Re5 {[%emt 0:01:11]} 27. Nf5+ {[%emt 0:02:44]} Kf8 {[%emt 0:03:02]} 28. Nxd6 {[%emt 0:00:49]} Rh4 {[%emt 0:01:04]} 29. Nxb7 {[%emt 0:02:24]} Rexe4+ {[%emt 0:01:28]} 30. Kd2 {[%emt 0:00:30]} Rb4 {[%emt 0:00:29]} 31. Nc5 {[%emt 0:00:37]} Rxb2 {[%emt 0:00:57]} 32. Kc3 {[%emt 0:00:31]} Rb5 {[%emt 0:00:36]} 33. Rg5 {[%emt 0:00:31]} Rxc5+ {[%emt 0:00:07]} 34. Rxc5 {[%emt 0:00:12]} Ne4+ {[%emt 0:00:04]} 35. Kb2 {[%emt 0:00:30]} Nxc5 {[%emt 0:00:11]} 36. Rd2 {[%emt 0:00:15]} f5 {[%emt 0:00:44]} 37. Rd8+ {[%emt 0:00:18]} Kf7 {[%emt 0:00:15]} 38. Rc8 {[%emt 0:00:22]} Ne6 {[%emt 0:00:33]} 39. c4 {[%emt 0:00:20]} Rd4 {[%emt 0:00:31]} 40. Kc3 {[%emt 0:00:00]} f4 {[%emt 0:00:00]} 41. Rc6 {[%emt 0:00:52]} f3 {[%emt 0:00:48]} 42. Rxe6 {[%emt 0:00:09]} Kxe6 {[%emt 0:00:08]} 43. Kxd4 {[%emt 0:00:04]} f2 {[%emt 0:00:18]} 0-1

[Event "Polish Youth G16 Championship 2023"]
[Site "Jastrzebia Gora"]
[Date "2023.03.15"]
[Round "5.15"]
[White "Bandyk, Joanna"]
[Black "Pastuszko, Katarzyna"]
[Result "0-1"]
[ECO "C58"]
[WhiteElo "1459"]
[BlackElo "1286"]
[Annotator "NA RC COMBH"]
[PlyCount "64"]
[EventDate "2023.03.11"]
[EventType "swiss"]
[EventCountry "POL"]
[SourceTitle "playchess.com"]
[Source "ChessBase"]
[SourceQuality "1"]
[TimeControl "40/5400+30:1800+30"]

1. e4 {[%emt 0:00:02]} e5 {[%emt 0:00:06]} 2. Nf3 {[%emt 0:00:05]} Nc6 {[%emt 0:00:07]} 3. Bc4 {[%emt 0:00:06]} Nf6 {[%emt 0:00:04]} 4. Ng5 {[%emt 0:00:11]} d5 {[%emt 0:00:09]} 5. exd5 {[%emt 0:00:10]} Na5 {[%emt 0:00:06]} 6. Bb5+ {[%emt 0:00:15]} c6 {[%emt 0:00:12]} 7. dxc6 {[%emt 0:01:07]} bxc6 {[%emt 0:00:06]} 8. Qf3 {[%emt 0:00:24]} Be7 {[%emt 0:00:20]} 9. Bxc6+ {[%emt 0:01:22]} Nxc6 {[%emt 0:00:31]} 10. Qxc6+ {[%emt 0:00:11]} Bd7 {[%emt 0:00:22]} 11. Qc4 {[%emt 0:03:01]} O-O {[%emt 0:00:29]} 12. Nc3 {[%emt 0:02:46]} Rc8 {[%emt 0:03:45]} 13. Qe2 {[%emt 0:02:54]} h6 {[%emt 0:00:59]} 14. Nge4 {[%emt 0:15:03]} Nxe4 {[%emt 0:01:17]} 15. Nxe4 {[%emt 0:01:06]} f5 {[%emt 0:02:40]} 16. Nc3 {[%emt 0:00:44]} f4 {[%emt 0:09:30]} 17. O-O {[%emt 0:10:34]} f3 {[%emt 0:04:30]} 18. Qxe5 {[%emt 0:02:46]} Rf5 {[%emt 0:04:39]} 19. Qe4 {[%emt 0:03:58]} fxg2 {[%emt 0:08:56]} 20. Re1 {[%emt 0:01:19]} Bd6 {[%emt 0:01:02]} 21. d4 {[%emt 0:03:52]} Qc7 {[%emt 0:12:06]} 22. Nd5 {[%emt 0:19:45]} Bxh2+ {[%emt 0:05:50]} 23. Kxg2 {[%emt 0:00:03]} Rxf2+ {[%emt 0:19:20]} 24. Kh1 {[%emt 0:02:48]} Qg3 {[%emt 0:11:10]} 25. Ne7+ {[%emt 0:07:24]} Kh8 {[%emt 0:00:13]} 26. Be3 {[%emt 0:03:51]} Bg1 {[%emt 0:03:37]} 27. Ng6+ {[%emt 0:00:19]} Kg8 {[%emt 0:00:22]} 28. Ne7+ {[%emt 0:00:13]} Kf8 {[%emt 0:03:21]} 29. Qf4+ {[%emt 0:02:04]} Rxf4 {[%emt 0:01:01]} 30. Bxf4 {[%emt 0:00:06]} Qh3+ {[%emt 0:01:19]} 31. Kxg1 {[%emt 0:00:21]} Rxc2 {[%emt 0:00:34]} 32. Ng6+ {[%emt 0:00:34]} Kg8 {[%emt 0:00:13]} 0-1

[Event "Polish Youth G16 Championship 2023"]
[Site "Jastrzebia Gora"]
[Date "2023.03.15"]
[Round "5.16"]
[White "Pietryk, Joanna"]
[Black "Krzysztynska, Maria"]
[Result "1-0"]
[ECO "C62"]
[WhiteElo "1488"]
[BlackElo "1335"]
[Annotator "NA RC COMBH"]
[PlyCount "106"]
[EventDate "2023.03.11"]
[EventType "swiss"]
[EventCountry "POL"]
[SourceTitle "playchess.com"]
[Source "ChessBase"]
[SourceQuality "1"]
[TimeControl "40/5400+30:1800+30"]

1. e4 {[%emt 0:00:03]} e5 {[%emt 0:08:14]} 2. Nf3 {[%emt 0:00:08]} Nc6 {[%emt 0:00:18]} 3. Bb5 {[%emt 0:00:06]} d6 {[%emt 0:01:29]} 4. d4 {[%emt 0:00:16]} Bd7 {[%emt 0:01:34]} 5. Bxc6 {[%emt 0:00:13]} Bxc6 {[%emt 0:01:06]} 6. Nc3 {[%emt 0:00:23]} Nf6 {[%emt 0:02:23]} 7. Qe2 {[%emt 0:00:21]} Qe7 {[%emt 0:03:02]} 8. d5 {[%emt 0:09:15]} Bd7 {[%emt 0:00:39]} 9. O-O {[%emt 0:01:24]} h6 {[%emt 0:03:20]} 10. h3 {[%emt 0:04:34]} g5 {[%emt 0:03:27]} 11. Nh2 {[%emt 0:01:11]} Rg8 {[%emt 0:04:07]} 12. Ng4 {[%emt 0:01:56]} Nxg4 {[%emt 0:04:46]} 13. hxg4 {[%emt 0:00:08]} h5 {[%emt 0:02:35]} 14. gxh5 {[%emt 0:03:53]} g4 {[%emt 0:03:46]} 15. g3 {[%emt 0:01:01]} Qf6 {[%emt 0:07:54]} 16. Kg2 {[%emt 0:01:36]} Bh6 {[%emt 0:06:35]} 17. Be3 {[%emt 0:01:56]} a6 {[%emt 0:02:03]} 18. Rh1 {[%emt 0:02:22]} Rh8 {[%emt 0:04:10]} 19. Rh4 {[%emt 0:02:00]} Bg5 {[%emt 0:06:46]} 20. Bxg5 {[%emt 0:01:38]} Qxg5 {[%emt 0:00:38]} 21. Rah1 {[%emt 0:00:59]} Rh6 {[%emt 0:01:52]} 22. Nd1 {[%emt 0:01:23]} O-O-O {[%emt 0:04:08]} 23. Qe3 {[%emt 0:02:26]} Qf6 {[%emt 0:02:04]} 24. c4 {[%emt 0:12:28]} Rdh8 {[%emt 0:03:18]} 25. b4 {[%emt 0:03:11]} Qg7 {[%emt 0:02:51]} 26. Qa7 {[%emt 0:01:45]} c6 {[%emt 0:01:02]} 27. b5 {[%emt 0:06:29]} cxb5 {[%emt 0:02:35]} 28. cxb5 {[%emt 0:00:13]} axb5 {[%emt 0:04:53]} 29. Ne3 {[%emt 0:02:45]} Kd8 {[%emt 0:01:48]} 30. Qb8+ {[%emt 0:03:32]} Ke7 {[%emt 0:01:25]} 31. Qc7 {[%emt 0:01:03]} Ke8 {[%emt 0:00:49]} 32. Nf5 {[%emt 0:04:06]} Bxf5 {[%emt 0:01:32]} 33. exf5 {[%emt 0:00:13]} Qg5 {[%emt 0:01:33]} 34. Qc8+ {[%emt 0:04:29]} Ke7 {[%emt 0:00:25]} 35. Qxb7+ {[%emt 0:00:50]} Kf8 {[%emt 0:00:56]} 36. Qd7 {[%emt 0:06:04]} Rf6 {[%emt 0:05:10]} 37. Qd8+ {[%emt 0:05:41]} Kg7 {[%emt 0:00:48]} 38. h6+ {[%emt 0:00:10]} Kh7 {[%emt 0:00:56]} 39. Rxg4 {[%emt 0:02:30]} Rxd8 {[%emt 0:01:56]} 40. Rxg5 {[%emt 0:00:00]} Rxh6 {[%emt 0:00:00]} 41. Rb1 {[%emt 0:01:00]} Ra8 {[%emt 0:02:54]} 42. Rb2 {[%emt 0:07:08]} Ra4 {[%emt 0:04:24]} 43. Rxb5 {[%emt 0:05:19]} f6 {[%emt 0:03:32]} 44. Rb7+ {[%emt 0:00:15]} Kh8 {[%emt 0:00:51]} 45. Rgg7 {[%emt 0:00:18]} Rxa2 {[%emt 0:01:58]} 46. Rgd7 {[%emt 0:00:16]} Ra8 {[%emt 0:00:45]} 47. Rxd6 {[%emt 0:00:29]} Rf8 {[%emt 0:02:18]} 48. Rdd7 {[%emt 0:02:18]} Rh5 {[%emt 0:01:27]} 49. d6 {[%emt 0:00:42]} Rg5 {[%emt 0:00:35]} 50. Re7 {[%emt 0:01:49]} Kg8 {[%emt 0:00:50]} 51. d7 {[%emt 0:00:49]} Rg7 {[%emt 0:00:28]} 52. Rxg7+ {[%emt 0:00:11]} Kxg7 {[%emt 0:00:13]} 53. d8=Q+ {[%emt 0:00:10]} Rf7 {[%emt 0:00:28]} 1-0